[Event "Early-Titled-Tuesday-Blitz-January-23-2024"]
[Site "Chess.com"]
[Date "2024.01.23"]
[Round "5"]
[White "Francisco_Ferrari"]
[Black "wanyaland"]
[Result "0-1"]
[WhiteElo "2196"]
[BlackElo "2458"]
[TimeControl "180+1"]
[EndTime "8:53:54 PST"]
[Termination "wanyaland won on time"]

1. d4 {[%clk 0:03:00.9]} 1... d5 {[%clk 0:02:53.2]} 2. Nf3 {[%clk 0:03:00.3]}
2... e6 {[%clk 0:02:52.8]} 3. c4 {[%clk 0:02:56.8]} 3... Nf6 {[%clk 0:02:50.1]}
4. Nc3 {[%clk 0:02:56.3]} 4... c6 {[%clk 0:02:49.3]} 5. g3 {[%clk 0:02:51.3]}
5... Nbd7 {[%clk 0:02:47.7]} 6. Bg2 {[%clk 0:02:51.4]} 6... dxc4 {[%clk
0:02:47.6]} 7. O-O {[%clk 0:02:44.7]} 7... b5 {[%clk 0:02:47.4]} 8. Bf4 {[%clk
0:02:26.4]} 8... Bb7 {[%clk 0:02:46]} 9. Rc1 {[%clk 0:01:59.6]} 9... a6 {[%clk
0:02:45.8]} 10. a4 {[%clk 0:01:51.5]} 10... Be7 {[%clk 0:02:39.6]} 11. Qc2
{[%clk 0:01:39.6]} 11... Qb6 {[%clk 0:02:35.3]} 12. Rfd1 {[%clk 0:01:32.1]}
12... c5 {[%clk 0:02:34.9]} 13. dxc5 {[%clk 0:01:29.1]} 13... Bxc5 {[%clk
0:02:33.4]} 14. e3 {[%clk 0:01:18.1]} 14... O-O {[%clk 0:02:24.8]} 15. b3 {[%clk
0:00:59.9]} 15... b4 {[%clk 0:02:22.3]} 16. Nb1 {[%clk 0:00:59.5]} 16... c3
{[%clk 0:02:21.6]} 17. Nxc3 {[%clk 0:00:22]} 17... bxc3 {[%clk 0:02:20.2]} 18.
Qxc3 {[%clk 0:00:22.9]} 18... Bb4 {[%clk 0:02:19.6]} 19. Qb2 {[%clk 0:00:17.2]}
19... Bd5 {[%clk 0:02:19.2]} 20. Bc7 {[%clk 0:00:16.2]} 20... Qb7 {[%clk
0:02:17.5]} 21. Ne5 {[%clk 0:00:14.4]} 21... Nxe5 {[%clk 0:02:09.8]} 22. Bxd5
{[%clk 0:00:13.5]} 22... Nf3+ {[%clk 0:02:06.8]} 23. Bxf3 {[%clk 0:00:13]} 23...
Qxf3 {[%clk 0:02:07.3]} 24. Rd4 {[%clk 0:00:11.2]} 24... a5 {[%clk 0:02:02.4]}
25. Bd6 {[%clk 0:00:10.2]} 25... Bxd6 {[%clk 0:01:58.1]} 26. Rxd6 {[%clk
0:00:11.1]} 26... Ne4 {[%clk 0:01:58]} 27. Rd4 {[%clk 0:00:09.5]} 27... Ng5
{[%clk 0:01:56.9]} 28. h4 {[%clk 0:00:03.7]} 28... Nh3+ {[%clk 0:01:55.7]} 29.
Kh2 {[%clk 0:00:04.1]} 29... Nxf2 {[%clk 0:01:55.7]} 30. Rf1 {[%clk 0:00:04.5]}
30... Ng4+ {[%clk 0:01:55.6]} 31. Rxg4 {[%clk 0:00:04.4]} 31... Qxg4 {[%clk
0:01:53.8]} 32. Rf4 {[%clk 0:00:04.5]} 32... Qd1 {[%clk 0:01:51.4]} 33. Kh3
{[%clk 0:00:03.6]} 33... h5 {[%clk 0:01:48.4]} 34. g4 {[%clk 0:00:03.2]} 34...
Qh1+ {[%clk 0:01:44.8]} 35. Kg3 {[%clk 0:00:02.6]} 35... Rac8 {[%clk 0:01:39.2]}
0-1

[Event "Early-Titled-Tuesday-Blitz-January-23-2024"]
[Site "Chess.com"]
[Date "2024.01.23"]
[Round "5"]
[White "ErikRonka"]
[Black "RodokininEV"]
[Result "1-0"]
[WhiteElo "2498"]
[BlackElo "2607"]
[TimeControl "180+1"]
[EndTime "8:53:55 PST"]
[Termination "ErikRonka won by checkmate"]

1. e4 {[%clk 0:02:55.1]} 1... c5 {[%clk 0:02:59.7]} 2. Nf3 {[%clk 0:02:55]} 2...
e6 {[%clk 0:02:58.9]} 3. d4 {[%clk 0:02:55.4]} 3... cxd4 {[%clk 0:02:59.8]} 4.
Nxd4 {[%clk 0:02:56.2]} 4... a6 {[%clk 0:03:00.2]} 5. Nc3 {[%clk 0:02:56.6]}
5... Qc7 {[%clk 0:03:00.5]} 6. Bd3 {[%clk 0:02:57.2]} 6... Bc5 {[%clk
0:03:00.2]} 7. Nb3 {[%clk 0:02:44.5]} 7... Be7 {[%clk 0:03:00.4]} 8. Qg4 {[%clk
0:02:43.3]} 8... Kf8 {[%clk 0:02:59.1]} 9. Bd2 {[%clk 0:02:40.7]} 9... Nf6
{[%clk 0:02:57.1]} 10. Qe2 {[%clk 0:02:36.4]} 10... Nc6 {[%clk 0:02:53.6]} 11.
f4 {[%clk 0:02:33.3]} 11... Nb4 {[%clk 0:02:48.7]} 12. O-O-O {[%clk 0:02:30.5]}
12... b5 {[%clk 0:02:45]} 13. g4 {[%clk 0:02:25.5]} 13... Bb7 {[%clk 0:02:24.9]}
14. g5 {[%clk 0:02:21.7]} 14... Ne8 {[%clk 0:02:24.8]} 15. Kb1 {[%clk 0:02:14]}
15... Rc8 {[%clk 0:02:23.8]} 16. a3 {[%clk 0:01:55.3]} 16... Nc6 {[%clk
0:02:17.3]} 17. Rhf1 {[%clk 0:01:49]} 17... Nd6 {[%clk 0:02:15.3]} 18. f5 {[%clk
0:01:47.1]} 18... Ne5 {[%clk 0:02:13.4]} 19. Bf4 {[%clk 0:01:44.1]} 19... Ndc4
{[%clk 0:02:13.2]} 20. Bxc4 {[%clk 0:01:34.9]} 20... bxc4 {[%clk 0:02:14.1]} 21.
Nd4 {[%clk 0:01:28.6]} 21... Kg8 {[%clk 0:02:01.5]} 22. Qf2 {[%clk 0:01:18]}
22... Rf8 {[%clk 0:01:46.7]} 23. f6 {[%clk 0:01:16]} 23... Bd6 {[%clk
0:01:40.2]} 24. fxg7 {[%clk 0:01:09]} 24... Kxg7 {[%clk 0:01:41.1]} 25. Ndb5
{[%clk 0:00:45.2]} 25... axb5 {[%clk 0:01:36.2]} 26. Nxb5 {[%clk 0:00:46.1]}
26... Qc5 {[%clk 0:01:36.5]} 27. Nxd6 {[%clk 0:00:41]} 27... Qxf2 {[%clk
0:01:00.2]} 28. Bxe5+ {[%clk 0:00:37.4]} 28... f6 {[%clk 0:01:00.8]} 29. gxf6+
{[%clk 0:00:27.9]} 29... Qxf6 {[%clk 0:01:01]} 30. Rxf6 {[%clk 0:00:20.5]} 30...
Bc6 {[%clk 0:00:58.3]} 31. Rg1# {[%clk 0:00:18.2]} 1-0

[Event "Early-Titled-Tuesday-Blitz-January-23-2024"]
[Site "Chess.com"]
[Date "2024.01.23"]
[Round "5"]
[White "gmcorrales"]
[Black "brm72"]
[Result "1/2-1/2"]
[WhiteElo "2926"]
[BlackElo "2702"]
[TimeControl "180+1"]
[EndTime "8:53:56 PST"]
[Termination "Game drawn by agreement"]

1. e4 {[%clk 0:03:00.9]} 1... c5 {[%clk 0:02:59.7]} 2. Nf3 {[%clk 0:03:01]} 2...
Nc6 {[%clk 0:02:59.8]} 3. d4 {[%clk 0:03:01.6]} 3... cxd4 {[%clk 0:03:00.7]} 4.
Nxd4 {[%clk 0:03:02.4]} 4... Nf6 {[%clk 0:03:00.8]} 5. Nc3 {[%clk 0:03:02.8]}
5... e6 {[%clk 0:03:01.4]} 6. Ndb5 {[%clk 0:03:02.6]} 6... Bc5 {[%clk
0:03:01.2]} 7. Nd6+ {[%clk 0:02:57.4]} 7... Ke7 {[%clk 0:03:00.8]} 8. Bf4 {[%clk
0:02:57.6]} 8... e5 {[%clk 0:02:59.8]} 9. Nf5+ {[%clk 0:02:57.4]} 9... Kf8
{[%clk 0:02:59.8]} 10. Bg5 {[%clk 0:02:58.3]} 10... d6 {[%clk 0:02:59.3]} 11.
Bd3 {[%clk 0:02:46.4]} 11... h6 {[%clk 0:02:58.3]} 12. Bxf6 {[%clk 0:02:46.5]}
12... Qxf6 {[%clk 0:02:59.1]} 13. Nd5 {[%clk 0:02:41.8]} 13... Qg5 {[%clk
0:02:45.8]} 14. g3 {[%clk 0:02:34.3]} 14... Be6 {[%clk 0:02:43.7]} 15. h4 {[%clk
0:02:31.6]} 15... Qd8 {[%clk 0:02:32.5]} 16. c3 {[%clk 0:02:24.6]} 16... g6
{[%clk 0:02:25.1]} 17. Nfe3 {[%clk 0:02:24.4]} 17... Kg7 {[%clk 0:02:19.7]} 18.
Qe2 {[%clk 0:02:23.1]} 18... Ne7 {[%clk 0:02:18.3]} 19. Nxe7 {[%clk 0:02:22.8]}
19... Qxe7 {[%clk 0:02:19.2]} 20. h5 {[%clk 0:02:22.7]} 20... Bxe3 {[%clk
0:02:12.9]} 21. Qxe3 {[%clk 0:02:22.4]} 21... g5 {[%clk 0:02:12.9]} 22. c4
{[%clk 0:02:06.9]} 22... a6 {[%clk 0:02:09.7]} 23. O-O {[%clk 0:01:59.8]} 23...
Bg4 {[%clk 0:01:44.6]} 24. Be2 {[%clk 0:01:59.3]} 24... Qe6 {[%clk 0:01:42.7]}
25. Rfd1 {[%clk 0:01:58.3]} 25... Bxe2 {[%clk 0:01:39.4]} 26. Qxe2 {[%clk
0:01:58.4]} 26... Rac8 {[%clk 0:01:38.3]} 27. Rd5 {[%clk 0:01:58.2]} 27... Rc5
{[%clk 0:01:33.5]} 28. Rad1 {[%clk 0:01:56.6]} 28... Rxd5 {[%clk 0:01:32.5]} 29.
Rxd5 {[%clk 0:01:57.5]} 29... Rc8 {[%clk 0:01:31.6]} 30. b3 {[%clk 0:01:55.6]}
30... Rc5 {[%clk 0:01:29]} 31. Rxc5 {[%clk 0:01:43.9]} 31... dxc5 {[%clk
0:01:27.7]} 32. Qd1 {[%clk 0:01:44.3]} 32... Qc6 {[%clk 0:01:18.5]} 33. Qd5
{[%clk 0:01:40.8]} 33... Qc7 {[%clk 0:01:07.3]} 34. Kg2 {[%clk 0:01:40]} 34...
b6 {[%clk 0:01:06.7]} 35. Kf3 {[%clk 0:01:39]} 35... a5 {[%clk 0:01:06.3]} 36.
a4 {[%clk 0:01:37]} 36... Qe7 {[%clk 0:01:04.8]} 37. Kg4 {[%clk 0:01:33.7]}
37... Qf6 {[%clk 0:01:04.4]} 38. f3 {[%clk 0:01:31.4]} 38... Qe6+ {[%clk
0:01:03.1]} 39. Qxe6 {[%clk 0:01:30.6]} 39... fxe6 {[%clk 0:01:04]} 1/2-1/2

[Event "Early-Titled-Tuesday-Blitz-January-23-2024"]
[Site "Chess.com"]
[Date "2024.01.23"]
[Round "5"]
[White "AvitalBor"]
[Black "StankovicIvan"]
[Result "1-0"]
[WhiteElo "2781"]
[BlackElo "2520"]
[TimeControl "180+1"]
[EndTime "8:54:00 PST"]
[Termination "AvitalBor won by resignation"]

1. c4 {[%clk 0:03:00.9]} 1... e5 {[%clk 0:02:58.7]} 2. e3 {[%clk 0:03:01.1]}
2... d6 {[%clk 0:02:55.8]} 3. d4 {[%clk 0:02:59.7]} 3... Nd7 {[%clk 0:02:55.8]}
4. Nc3 {[%clk 0:02:59.3]} 4... g6 {[%clk 0:02:55.9]} 5. Nf3 {[%clk 0:02:53]}
5... Bg7 {[%clk 0:02:55.9]} 6. b4 {[%clk 0:02:53]} 6... Ngf6 {[%clk 0:02:54.8]}
7. Bb2 {[%clk 0:02:52.9]} 7... O-O {[%clk 0:02:53.9]} 8. Be2 {[%clk 0:02:52.7]}
8... Re8 {[%clk 0:02:50]} 9. Qc2 {[%clk 0:02:49.4]} 9... e4 {[%clk 0:02:45.7]}
10. Nd2 {[%clk 0:02:48.6]} 10... Qe7 {[%clk 0:02:46.1]} 11. O-O {[%clk
0:02:46.1]} 11... Nf8 {[%clk 0:02:44.7]} 12. Nd5 {[%clk 0:02:42.4]} 12... Nxd5
{[%clk 0:02:34]} 13. cxd5 {[%clk 0:02:43.3]} 13... Bf5 {[%clk 0:02:30.6]} 14.
Rfc1 {[%clk 0:02:24.2]} 14... Rac8 {[%clk 0:02:29.1]} 15. Nb3 {[%clk 0:02:14.5]}
15... b6 {[%clk 0:02:12.8]} 16. Ba6 {[%clk 0:02:13]} 16... h5 {[%clk 0:02:11.4]}
17. Bxc8 {[%clk 0:02:08.1]} 17... Rxc8 {[%clk 0:02:12.3]} 18. a4 {[%clk
0:02:04.2]} 18... h4 {[%clk 0:02:08.9]} 19. h3 {[%clk 0:01:58.9]} 19... Nh7
{[%clk 0:02:07]} 20. a5 {[%clk 0:01:53.7]} 20... Qd7 {[%clk 0:02:01.1]} 21. axb6
{[%clk 0:01:51.5]} 21... axb6 {[%clk 0:01:59.6]} 22. Qc6 {[%clk 0:01:39.7]}
22... Qe7 {[%clk 0:01:56.4]} 23. Ra8 {[%clk 0:01:37.4]} 23... Ng5 {[%clk
0:01:39.7]} 24. Rxc8+ {[%clk 0:01:32.9]} 24... Bxc8 {[%clk 0:01:39.2]} 25. Qxc7
{[%clk 0:01:31.4]} 25... Bd7 {[%clk 0:01:39.5]} 26. Nd2 {[%clk 0:01:17.7]} 26...
Bh6 {[%clk 0:01:34.8]} 27. Kf1 {[%clk 0:00:39.3]} 27... Kg7 {[%clk 0:01:16.3]}
28. Ke1 {[%clk 0:00:39.1]} 28... Kf6 {[%clk 0:01:05.8]} 29. b5 {[%clk
0:00:35.2]} 29... Kg7 {[%clk 0:00:57.6]} 30. Ba3 {[%clk 0:00:34.8]} 30... Nxh3
{[%clk 0:00:54.6]} 31. gxh3 {[%clk 0:00:31.2]} 31... Qg5 {[%clk 0:00:51.5]} 32.
Qxd7 {[%clk 0:00:29]} 1-0

[Event "Early-Titled-Tuesday-Blitz-January-23-2024"]
[Site "Chess.com"]
[Date "2024.01.23"]
[Round "5"]
[White "Ginger_GM"]
[Black "Elsa167"]
[Result "0-1"]
[WhiteElo "2681"]
[BlackElo "2913"]
[TimeControl "180+1"]
[EndTime "8:54:02 PST"]
[Termination "Elsa167 won by resignation"]

1. d4 {[%clk 0:03:00.9]} 1... d5 {[%clk 0:02:57.6]} 2. c4 {[%clk 0:02:59.3]}
2... e6 {[%clk 0:02:58.1]} 3. Nc3 {[%clk 0:02:58.4]} 3... Nf6 {[%clk 0:02:58.2]}
4. Nf3 {[%clk 0:02:58.3]} 4... Ne4 {[%clk 0:02:54.2]} 5. Qc2 {[%clk 0:02:53.1]}
5... Nxc3 {[%clk 0:02:54.3]} 6. bxc3 {[%clk 0:02:53.1]} 6... c5 {[%clk
0:02:49.4]} 7. e4 {[%clk 0:02:38.1]} 7... cxd4 {[%clk 0:02:39.4]} 8. cxd5 {[%clk
0:02:29.9]} 8... exd5 {[%clk 0:02:35.6]} 9. Bb5+ {[%clk 0:02:29.1]} 9... Bd7
{[%clk 0:02:28.1]} 10. Bxd7+ {[%clk 0:02:26.1]} 10... Qxd7 {[%clk 0:02:28.4]}
11. O-O {[%clk 0:02:21.2]} 11... Be7 {[%clk 0:02:04.3]} 12. Nxd4 {[%clk
0:02:14.6]} 12... O-O {[%clk 0:01:46.8]} 13. e5 {[%clk 0:02:12.9]} 13... Nc6
{[%clk 0:01:45.3]} 14. f4 {[%clk 0:01:46.4]} 14... Nxd4 {[%clk 0:01:43.7]} 15.
cxd4 {[%clk 0:01:46.3]} 15... Rac8 {[%clk 0:01:44.2]} 16. Qd3 {[%clk 0:01:42.9]}
16... f5 {[%clk 0:01:42.4]} 17. Be3 {[%clk 0:01:00.7]} 17... Rc4 {[%clk
0:01:41.9]} 18. g4 {[%clk 0:01:00.7]} 18... g6 {[%clk 0:01:37.5]} 19. gxf5
{[%clk 0:00:38.3]} 19... Rxf5 {[%clk 0:01:36.8]} 20. Rac1 {[%clk 0:00:36.1]}
20... b5 {[%clk 0:01:35.1]} 21. Rxc4 {[%clk 0:00:34.1]} 21... bxc4 {[%clk
0:01:34.3]} 22. Qb1 {[%clk 0:00:33.2]} 22... Rf8 {[%clk 0:01:29.9]} 23. Kh1
{[%clk 0:00:31]} 23... Qh3 {[%clk 0:01:17.7]} 24. Bd2 {[%clk 0:00:20.1]} 24...
c3 {[%clk 0:01:11]} 25. Bxc3 {[%clk 0:00:09.5]} 25... Qxc3 {[%clk 0:01:10.9]}
26. Qb7 {[%clk 0:00:09.3]} 26... Qc4 {[%clk 0:00:53.2]} 0-1

[Event "Early-Titled-Tuesday-Blitz-January-23-2024"]
[Site "Chess.com"]
[Date "2024.01.23"]
[Round "5"]
[White "CarlosjPineror"]
[Black "jcibarra"]
[Result "0-1"]
[WhiteElo "2603"]
[BlackElo "2836"]
[TimeControl "180+1"]
[EndTime "8:54:04 PST"]
[Termination "jcibarra won by resignation"]

1. d4 {[%clk 0:02:59]} 1... Nf6 {[%clk 0:02:59.7]} 2. Nf3 {[%clk 0:02:59.2]}
2... g6 {[%clk 0:02:57.5]} 3. Bf4 {[%clk 0:02:58.9]} 3... d6 {[%clk 0:02:57.9]}
4. e3 {[%clk 0:02:59.5]} 4... Bg7 {[%clk 0:02:58.5]} 5. h3 {[%clk 0:02:59.8]}
5... O-O {[%clk 0:02:59]} 6. Be2 {[%clk 0:02:59.6]} 6... c5 {[%clk 0:02:59.6]}
7. c3 {[%clk 0:02:59.3]} 7... Be6 {[%clk 0:02:59.7]} 8. O-O {[%clk 0:02:55]}
8... Qb6 {[%clk 0:02:59.3]} 9. b3 {[%clk 0:02:41.3]} 9... Nc6 {[%clk 0:02:58.9]}
10. Nbd2 {[%clk 0:02:35.9]} 10... Nd5 {[%clk 0:02:52.4]} 11. Nc4 {[%clk
0:02:11.7]} 11... Qd8 {[%clk 0:02:49.7]} 12. Qd2 {[%clk 0:02:04.6]} 12... Nxf4
{[%clk 0:02:39.1]} 13. exf4 {[%clk 0:02:05.5]} 13... cxd4 {[%clk 0:02:36.6]} 14.
cxd4 {[%clk 0:02:04.7]} 14... Bd5 {[%clk 0:02:28.2]} 15. Ne3 {[%clk 0:01:50.1]}
15... Bxf3 {[%clk 0:02:20.1]} 16. Bxf3 {[%clk 0:01:51]} 16... Nxd4 {[%clk
0:02:08.1]} 17. Bxb7 {[%clk 0:01:48.9]} 17... Rb8 {[%clk 0:02:08.4]} 18. Be4
{[%clk 0:01:41]} 18... e6 {[%clk 0:02:06.1]} 19. Rac1 {[%clk 0:01:38.4]} 19...
d5 {[%clk 0:02:05.5]} 20. Bd3 {[%clk 0:01:39.1]} 20... Qd6 {[%clk 0:01:59.8]}
21. Nc2 {[%clk 0:01:38.4]} 21... Nc6 {[%clk 0:01:54.1]} 22. Rfd1 {[%clk
0:01:32.7]} 22... Rfd8 {[%clk 0:01:42.9]} 23. g3 {[%clk 0:01:30.9]} 23... a5
{[%clk 0:01:39.7]} 24. Ne1 {[%clk 0:01:26.9]} 24... Nd4 {[%clk 0:01:35.7]} 25.
Qxa5 {[%clk 0:01:02.8]} 25... Ra8 {[%clk 0:01:34.8]} 26. Qc5 {[%clk 0:01:01.3]}
26... Qxc5 {[%clk 0:01:32.8]} 27. Rxc5 {[%clk 0:01:02.2]} 27... Rxa2 {[%clk
0:01:32.8]} 28. b4 {[%clk 0:00:49.7]} 28... Bf8 {[%clk 0:01:32.5]} 29. Rc7
{[%clk 0:00:41.5]} 29... Bxb4 {[%clk 0:01:28.6]} 30. Nc2 {[%clk 0:00:41.6]}
30... Bd6 {[%clk 0:01:15.9]} 31. Nxd4 {[%clk 0:00:32.8]} 31... Bxc7 {[%clk
0:01:14.9]} 32. h4 {[%clk 0:00:31.5]} 32... Bb6 {[%clk 0:01:15]} 33. Bf1 {[%clk
0:00:30.1]} 33... h5 {[%clk 0:01:10]} 34. Bh3 {[%clk 0:00:28.1]} 34... Rb8
{[%clk 0:01:05.7]} 35. Nc6 {[%clk 0:00:24]} 35... Bxf2+ {[%clk 0:01:04.6]} 36.
Kf1 {[%clk 0:00:21.8]} 36... Rb3 {[%clk 0:01:01.4]} 0-1

[Event "Early-Titled-Tuesday-Blitz-January-23-2024"]
[Site "Chess.com"]
[Date "2024.01.23"]
[Round "5"]
[White "19912131712118"]
[Black "fks_stal_mielec"]
[Result "1-0"]
[WhiteElo "2428"]
[BlackElo "2243"]
[TimeControl "180+1"]
[EndTime "8:54:06 PST"]
[Termination "19912131712118 won by checkmate"]

1. e4 {[%clk 0:03:00.9]} 1... c5 {[%clk 0:02:34.8]} 2. Nf3 {[%clk 0:03:00.8]}
2... Nc6 {[%clk 0:02:30.9]} 3. d4 {[%clk 0:03:01.1]} 3... cxd4 {[%clk
0:02:26.4]} 4. Nxd4 {[%clk 0:03:02]} 4... d5 {[%clk 0:02:25.5]} 5. Bb5 {[%clk
0:02:55.1]} 5... dxe4 {[%clk 0:02:24.7]} 6. Nxc6 {[%clk 0:02:41.8]} 6... Qxd1+
{[%clk 0:02:20.2]} 7. Kxd1 {[%clk 0:02:42.1]} 7... a6 {[%clk 0:02:14.4]} 8. Nd4+
{[%clk 0:02:26.3]} 8... axb5 {[%clk 0:02:12.5]} 9. Nxb5 {[%clk 0:02:27.2]} 9...
Ra5 {[%clk 0:02:02.3]} 10. N1a3 {[%clk 0:02:23.2]} 10... Bg4+ {[%clk 0:01:50.7]}
11. Ke1 {[%clk 0:02:19.3]} 11... Nf6 {[%clk 0:01:47.9]} 12. Bd2 {[%clk
0:02:19.1]} 12... Ra6 {[%clk 0:01:43.6]} 13. Nc7+ {[%clk 0:02:18.5]} 13... Kd7
{[%clk 0:01:43]} 14. Nxa6 {[%clk 0:02:18.7]} 14... bxa6 {[%clk 0:01:43.7]} 15.
Nc4 {[%clk 0:02:16.9]} 15... Kc7 {[%clk 0:01:40.1]} 16. Ne3 {[%clk 0:02:17]}
16... Bd7 {[%clk 0:01:38.2]} 17. Ba5+ {[%clk 0:02:14.7]} 17... Kb7 {[%clk
0:01:37.4]} 18. Rd1 {[%clk 0:02:14.6]} 18... e5 {[%clk 0:01:32.8]} 19. c4 {[%clk
0:02:11.3]} 19... Bc5 {[%clk 0:01:29.6]} 20. Ke2 {[%clk 0:02:11]} 20... Bg4+
{[%clk 0:01:26.9]} 21. Nxg4 {[%clk 0:02:07.3]} 21... Nxg4 {[%clk 0:01:25.5]} 22.
Rd7+ {[%clk 0:02:07.3]} 22... Ka8 {[%clk 0:01:22.7]} 23. Rxf7 {[%clk 0:02:07]}
23... Rf8 {[%clk 0:01:18.1]} 24. Rxf8+ {[%clk 0:02:06]} 24... Bxf8 {[%clk
0:01:19]} 25. f3 {[%clk 0:02:05.8]} 25... exf3+ {[%clk 0:01:18]} 26. gxf3 {[%clk
0:02:06.7]} 26... Nf6 {[%clk 0:01:17.3]} 27. Rd1 {[%clk 0:02:07.2]} 27... Bc5
{[%clk 0:01:16.8]} 28. Rd8+ {[%clk 0:02:05]} 28... Kb7 {[%clk 0:01:17.7]} 29. b4
{[%clk 0:02:03.4]} 29... Bd4 {[%clk 0:01:17.2]} 30. Rf8 {[%clk 0:02:00]} 30...
Nh5 {[%clk 0:01:15.9]} 31. Rf7+ {[%clk 0:01:59.5]} 31... Ka8 {[%clk 0:01:13.4]}
32. a4 {[%clk 0:01:59]} 32... Nf4+ {[%clk 0:01:12.3]} 33. Kf1 {[%clk 0:01:57.4]}
33... g5 {[%clk 0:01:04.3]} 34. Rxh7 {[%clk 0:01:56.3]} 34... Bc3 {[%clk
0:01:03.7]} 35. Rg7 {[%clk 0:01:49.8]} 35... Ne6 {[%clk 0:00:55]} 36. Rg6 {[%clk
0:01:49.3]} 36... Nd4 {[%clk 0:00:52]} 37. Rxa6+ {[%clk 0:01:49]} 37... Kb7
{[%clk 0:00:51.1]} 38. Rf6 {[%clk 0:01:47.9]} 38... Nb3 {[%clk 0:00:47.1]} 39.
Rf7+ {[%clk 0:01:45]} 39... Ka8 {[%clk 0:00:44]} 40. Bc7 {[%clk 0:01:40.9]}
40... Nd4 {[%clk 0:00:43.3]} 41. b5 {[%clk 0:01:38]} 41... g4 {[%clk 0:00:38.9]}
42. fxg4 {[%clk 0:01:37.2]} 42... e4 {[%clk 0:00:38.9]} 43. Bf4 {[%clk
0:01:30.6]} 43... Ne6 {[%clk 0:00:34.1]} 44. Be3 {[%clk 0:01:29.1]} 44... Bd4
{[%clk 0:00:31.2]} 45. Bxd4 {[%clk 0:01:28.5]} 45... Nxd4 {[%clk 0:00:31.4]} 46.
a5 {[%clk 0:01:28.9]} 46... e3 {[%clk 0:00:31.2]} 47. b6 {[%clk 0:01:26.6]}
47... e2+ {[%clk 0:00:30.9]} 48. Ke1 {[%clk 0:01:26.4]} 48... Kb8 {[%clk
0:00:29.5]} 49. a6 {[%clk 0:01:25.9]} 49... Nc2+ {[%clk 0:00:29.6]} 50. Kxe2
{[%clk 0:01:25.1]} 50... Nd4+ {[%clk 0:00:30.5]} 51. Kd1 {[%clk 0:01:24.6]}
51... Nc6 {[%clk 0:00:31.4]} 52. Rf8+ {[%clk 0:01:23.1]} 52... Nd8 {[%clk
0:00:29.4]} 53. Rxd8# {[%clk 0:01:23.3]} 1-0

[Event "Early-Titled-Tuesday-Blitz-January-23-2024"]
[Site "Chess.com"]
[Date "2024.01.23"]
[Round "5"]
[White "jefferyx"]
[Black "LeRoidesChampions"]
[Result "1-0"]
[WhiteElo "2998"]
[BlackElo "2620"]
[TimeControl "180+1"]
[EndTime "8:54:11 PST"]
[Termination "jefferyx won by resignation"]

1. e4 {[%clk 0:03:00.9]} 1... c5 {[%clk 0:02:53.7]} 2. Nf3 {[%clk 0:03:00.9]}
2... e6 {[%clk 0:02:53.9]} 3. c3 {[%clk 0:03:00.4]} 3... Nf6 {[%clk 0:02:52.9]}
4. Bd3 {[%clk 0:02:59.9]} 4... c4 {[%clk 0:02:42.7]} 5. Bc2 {[%clk 0:02:53.2]}
5... Nc6 {[%clk 0:02:42.9]} 6. O-O {[%clk 0:02:48.9]} 6... Qc7 {[%clk
0:02:38.4]} 7. b3 {[%clk 0:02:48.7]} 7... b5 {[%clk 0:02:33.5]} 8. a4 {[%clk
0:02:48.1]} 8... cxb3 {[%clk 0:02:30.7]} 9. Bxb3 {[%clk 0:02:49]} 9... bxa4
{[%clk 0:02:31.3]} 10. Rxa4 {[%clk 0:02:48.1]} 10... Bb7 {[%clk 0:02:30]} 11.
Re1 {[%clk 0:02:46.7]} 11... Be7 {[%clk 0:02:27]} 12. e5 {[%clk 0:02:46.6]}
12... Nd5 {[%clk 0:02:22.3]} 13. Rg4 {[%clk 0:02:41.5]} 13... g6 {[%clk
0:02:19.5]} 14. d4 {[%clk 0:02:41]} 14... h5 {[%clk 0:02:19.7]} 15. Rg3 {[%clk
0:02:34.3]} 15... Na5 {[%clk 0:02:19.8]} 16. Bc2 {[%clk 0:02:23.8]} 16... Nc4
{[%clk 0:02:14.8]} 17. Ng5 {[%clk 0:02:22.2]} 17... Bxg5 {[%clk 0:02:01.6]} 18.
Bxg5 {[%clk 0:02:23.1]} 18... a5 {[%clk 0:01:56.8]} 19. Nd2 {[%clk 0:02:13.6]}
19... a4 {[%clk 0:01:53.4]} 20. Ne4 {[%clk 0:02:12.4]} 20... a3 {[%clk
0:01:47.6]} 21. Bb3 {[%clk 0:02:12]} 21... a2 {[%clk 0:01:40]} 22. Qa1 {[%clk
0:02:11.6]} 22... Ndb6 {[%clk 0:01:35.2]} 23. Nf6+ {[%clk 0:02:04]} 23... Kf8
{[%clk 0:01:35.5]} 24. Bxa2 {[%clk 0:02:04.9]} 24... Qc6 {[%clk 0:01:34.1]} 25.
Qb1 {[%clk 0:01:51]} 25... h4 {[%clk 0:01:22]} 26. Rg4 {[%clk 0:01:51.2]} 26...
h3 {[%clk 0:01:22.3]} 27. Qb4+ {[%clk 0:01:51.4]} 27... Kg7 {[%clk 0:01:20.4]}
28. Bxc4 {[%clk 0:01:51.3]} 28... Nxc4 {[%clk 0:01:19.3]} 29. Ne4 {[%clk
0:01:34.4]} 29... Rh5 {[%clk 0:01:11.5]} 30. Bf6+ {[%clk 0:01:34.2]} 30... Kg8
{[%clk 0:01:11.6]} 31. Qe7 {[%clk 0:01:34.7]} 31... Qxe4 {[%clk 0:01:01.1]} 32.
Rgxe4 {[%clk 0:01:30.3]} 32... Bxe4 {[%clk 0:01:02]} 33. g4 {[%clk 0:01:20.9]}
33... Nd2 {[%clk 0:00:53.1]} 34. f4 {[%clk 0:01:15.7]} 34... Nf3+ {[%clk
0:00:49.9]} 35. Kf2 {[%clk 0:01:14.6]} 35... Nxe1 {[%clk 0:00:50.2]} 36. gxh5
{[%clk 0:01:14.4]} 36... Nd3+ {[%clk 0:00:39.5]} 37. Ke3 {[%clk 0:01:13.9]}
37... g5 {[%clk 0:00:40.2]} 38. Kxe4 {[%clk 0:01:12.3]} 38... Nxf4 {[%clk
0:00:30.6]} 39. h6 {[%clk 0:01:11.7]} 1-0